Cogmind - Beta 13 @@@ ROGUE MODE // 2024.06.10 @ 19:44:32 Player: Gabe+Kate4EVR Result: Destroyed by TC-XMQ(d) with Rocket Launcher Performance ------------- Evolutions (1) 500 Regions Visited (4) 800 Robots Destroyed (27) 135 Value Destroyed (408) 408 Prototype IDs (3) 60 Alien Tech Used (0) 0 Bonus (-34) -34 TOTAL SCORE: 1869 Bonus ------- Friendly Fire -34 Cogmind --------- Core Integrity 0/400 Matter 300/300 Energy 170/170 System Corruption 11% Temperature Cool (0) Movement Walking (136) Location -7/Zion Parts ------- > --- POWER (1) -------- Makeshift Power Source > --- PROPULSION (4) --- Titanium Leg Makeshift Leg Makeshift Leg > --- UTILITY (2) ------ Large Storage Unit Improved Weapon Shielding > --- WEAPON (2) ------- Makeshift Sword Makeshift Spear > --- INVENTORY (15) --- Carbon-fiber Leg Flight Unit Flight Unit Flight Unit Flight Unit Flight Unit Makeshift Terrain Scan Processor Makeshift ECM Suite Makeshift Hacking Suite Makeshift System Shield Mobile Refinery Mk. CCLXVII Makeshift Laser Light Assault Rifle Missile Launcher Mining Laser Peak State ------------ > --- POWER ------------ Makeshift Power Source > --- PROPULSION ------- Improved Carbon-fiber Leg Makeshift Leg Makeshift Leg Makeshift Leg > --- UTILITY ---------- Large Storage Unit Makeshift Salvage Targeting Computer > --- WEAPON ----------- Makeshift Hammer Makeshift Sword > --- INVENTORY -------- Carbon-fiber Leg Flight Unit Flight Unit Flight Unit Flight Unit Flight Unit Makeshift Terrain Scan Processor Makeshift ECM Suite Makeshift Hacking Suite Makeshift System Shield Mobile Refinery Mk. CCLXVII Makeshift Laser Light Assault Rifle Missile Launcher Mining Laser [Rating: 36] Favorites ----------- Power Ion Engine Engine Ion Engine Power Core Light Nuclear Core Propulsion Makeshift Leg Leg Makeshift Leg Utility Large Storage Unit Device Mobile Refinery Mk. CCLXVII Storage Large Storage Unit Processor Makeshift Salvage Targeting Computer Protection Core Shielding Weapon Improved Assault Rifle Energy Gun Small Laser Ballistic Gun Improved Assault Rifle Launcher Guided Missile Launcher Impact Weapon Makeshift Hammer Slashing Weapon Makeshift Sword Piercing Weapon Makeshift Spear Build | -11 -10 -9 -9 -7 ------- Run | Yrd Mat Mat Min Zio Slots Evolved 2 | . . 2 . . Power . | . . . . . Propulsion 2 | . . 2 . . Utility . | . . . . . Weapon . | . . . . . Parts Attached 44 | 6 2 3 . 33 Power 6 | 1 . . . 5 Engine 5 | 1 . . . 4 Core 1 | . . . . 1 Reactor . | . . . . . Propulsion 21 | 2 . . . 19 Treads . | . . . . . Leg 21 | 2 . . . 19 Wheel . | . . . . . Hover . | . . . . . Flight . | . . . . . Utility 6 | 1 1 1 . 3 Device 1 | . . . . 1 Storage 2 | 1 . 1 . . Processor 1 | . . . . 1 Hackware . | . . . . . Protection 2 | . 1 . . 1 Artifact . | . . . . . Weapon 11 | 2 1 2 . 6 Energy Gun 1 | 1 . . . . Energy Cannon . | . . . . . Ballistic Gun 4 | 1 1 2 . . Ballistic Cannon . | . . . . . Launcher 2 | . . . . 2 Special Weapon . | . . . . . Impact Weapon 1 | . . . . 1 Slashing Weapon 2 | . . . . 2 Piercing Weapon 1 | . . . . 1 Special Melee Weapon . | . . . . . Unidentified Prototypes 3 | . . 1 . 2 Parts Lost 10 | . . . . 10 Power 1 | . . . . 1 Propulsion 5 | . . . . 5 Utility 2 | . . . . 2 Weapon 2 | . . . . 2 Highest Loss Streak 2 | . . . . 2 To Critical Strikes . | . . . . . Average Slot Usage (%) 87 | . 93 77 77 87 Engine 10 | . 14 11 11 10 Leg 37 | . 28 22 22 38 Storage 11 | . 14 11 11 11 Processor 1 | . . . . 1 Protection 9 | . 7 11 11 9 Ballistic Gun 8 | . 14 18 22 7 Launcher 2 | . . . . 3 Impact Weapon 1 | . . . . 1 Slashing Weapon 4 | . . . . 5 Naked Turns . | . . . . . Heaviest Build 36 | 12 14 32 32 36 Greatest Support 78 | 20 20 20 20 78 Greatest Overweight (x) 1 | . . 1 1 1 Average Overweight (x) . | . . . 1 . Largest Inventory Capacity 15 | 8 8 15 15 15 Average Capacity 14 | 7 8 10 15 15 Most Carried 15 | 1 8 9 9 15 Average Carried 13 | . 6 8 9 13 Final Capacity 15 | 8 8 15 15 15 Final Carried 15 | 1 8 9 9 15 Class Distribution -------------------- 65% | Mutant 19% | Derelict-Mutant 15% | Scavenger-Mutant Dominant Class ---------------- Mutant | -10/Materials Mutant | -9/Materials Mutant | -9/Mines Mutant | -7/Zion Resources | -11 -10 -9 -9 -7 ----------- Run | Yrd Mat Mat Min Zio Matter Collected 843 | 214 39 32 . 558 Remotely . | . . . . . Salvage Created 610 | . 39 . . 571 Parts 46 | . 10 . . 36 Haulers Intercepted . | . . . . . Recyclers Shooed . | . . . . . Parts Field Recycled . | . . . . . Retrieved Matter . | . . . . . Parts Self-Destructed 1 | . . . . 1 Prevented . | . . . . . Kills | -11 -10 -9 -9 -7 ------- Run | Yrd Mat Mat Min Zio Combat Hostiles Destroyed 6 | . 3 . . 3 Melee 2 | . . . . 2 Guns 3 | . 3 . . . AOE 1 | . . . . 1 Classes Destroyed 6 | . 1 . . 5 Swarmer 3 | . 3 . . . Zionite 20 | . . . . 20 Tinkerer 1 | . . . . 1 Surgeon 1 | . . . . 1 Butcher 2 | . . . . 2 Mutant 1 | . . . . 1 Best Kill Streak 4 | . 3 . . 4 Combat Bots Only 3 | . 3 . . 1 Max Kills in Single Turn 2 | . 1 . . 2 Gunslinging . | . . . . . Exploded 1 | . . . . 1 Melee 1 | . . . . 1 Uniques/NPCs Destroyed . | . . . . . Combat | -11 -10 -9 -9 -7 -------- Run | Yrd Mat Mat Min Zio Hostile Shots Fired 129 | . 15 . . 114 Missed 42 | . 3 . . 39 Damage Taken 2128 | . 121 . . 2007 Core 439 | . 38 . . 401 Absorbed by Shields . | . . . . . Redirected to Shielding 89 | . 3 . . 86 Core Remaining (%) 92 | 100 84 . . . Volleys Fired 17 | . 5 . . 12 Largest 2 | . 2 . . 1 Hottest 60 | . 60 . . 39 Shots Fired 21 | . 9 . . 12 Gun 9 | . 9 . . . Cannon . | . . . . . Launcher 12 | . . . . 12 Special . | . . . . . Kinetic 5 | . 5 . . . Thermal 4 | . 4 . . . Explosive 12 | . . . . 12 Electromagnetic . | . . . . . Robot Hit Streak 8 | . 5 . . 8 Robot Miss Streak 1 | . 1 . . . Penetration Max . | . . . . . Secondary Targets 1 | . 1 . . . Max Gunslinging Chain 1 | . 1 . . . Shots Hit Robots 73 | . 6 . . 67 Core Hits 34 | . 4 . . 30 Critical Kills . | . . . . . Critical Parts Destroyed . | . . . . . Critical Strikes 7 | . . . . 7 Sever 5 | . . . . 5 Impale 2 | . . . . 2 Melee Attacks 188 | . . . . 188 Impact 6 | . . . . 6 Slashing 163 | . . . . 163 Piercing 19 | . . . . 19 Sneak Attacks 1 | . . . . 1 Combat Hostiles . | . . . . . Follow-up Attacks 11 | . . . . 11 Damage Inflicted 2445 | . 53 . . 2392 Guns 53 | . 53 . . . Cannons . | . . . . . Explosions 617 | . . . . 617 Melee 1775 | . . . . 1775 Ramming . | . . . . . Kinetic 19 | . 19 . . . Thermal 34 | . 34 . . . Explosive 617 | . . . . 617 Electromagnetic . | . . . . . Impact 90 | . . . . 90 Slashing 1398 | . . . . 1398 Piercing 287 | . . . . 287 Highest Corruption 11 | . . . . 11 Average Corruption 4 | . . . . 4 Corruption Purged . | . . . . . Corruption Blocked . | . . . . . Effects 15 | . . . . 15 Message Errors 1 | . . . . 1 Matter Fused 6 | . . . . 6 Heat Flow Errors 1 | . . . . 1 Energy Discharges 1 | . . . . 1 Data Loss (minor) 5 | . . . . 5 Alerts 1 | . . . . 1 Overload Shots . | . . . . . Overflow Damage 99 | . . . . 99 Projectiles . | . . . . . Explosions 33 | . . . . 33 Melee 66 | . . . . 66 Knockbacks . | . . . . . Impact . | . . . . . Kinetic . | . . . . . Secondary . | . . . . . Self-Inflicted Damage 34 | . . . . 34 Shots 1 | . . . . 1 Rammed . | . . . . . Targets Rammed . | . . . . . Kicked . | . . . . . Crushed . | . . . . . Highest Temperature 171 | . 20 . . 171 Average Temperature 52 | . 15 . . 73 Received Heat Transfer 186 | . 33 . . 153 Siege Activations . | . . . . . Robots Corrupted . | . . . . . Combat Hostiles . | . . . . . Parts Fried . | . . . . . Impact Corruptions . | . . . . . Robots Melted . | . . . . . Combat Hostiles . | . . . . . Parts Melted 4 | . . . . 4 Heat Transferred 75 | . 75 . . . Parts Sabotaged . | . . . . . Parts Stolen . | . . . . . Parts Stripped . | . . . . . Power Chain Reactions . | . . . . . Alert | -11 -10 -9 -9 -7 ------- Run | Yrd Mat Mat Min Zio Peak Influence 115 | . 115 48 18 . Initial 48 | . . 48 18 . Average 52 | . 72 48 18 . Maximum Alert Level . | . . . . . Low Security (%) 100 | 100 100 100 100 . Level 1 . | . . . . . Level 2 . | . . . . . Level 3 . | . . . . . Level 4 . | . . . . . Level 5 . | . . . . . High Security . | . . . . . Max Security . | . . . . . Squads Dispatched . | . . . . . Investigation . | . . . . . Extermination . | . . . . . Reinforcement . | . . . . . Assault . | . . . . . Garrison . | . . . . . Intercept . | . . . . . Searches Triggered . | . . . . . Construction Impeded . | . . . . . Haulers Reinforced . | . . . . . Active Scanning Responses . | . . . . . Cargo Convoy Interrupts . | . . . . . Stealth | -11 -10 -9 -9 -7 --------- Run | Yrd Mat Mat Min Zio Distress Signals . | . . . . . Communications Jammed . | . . . . . Distress Signals . | . . . . . Times Spotted 35 | . 8 . . 27 Peak Tracking Total 4 | . 4 . . 2 Tactical Retreats 2 | . 1 . . 1 Traps | -11 -10 -9 -9 -7 ------- Run | Yrd Mat Mat Min Zio Traps Triggered . | . . . . . Indirectly . | . . . . . Trap Hack Attempts . | . . . . . Triggered . | . . . . . Disarmed . | . . . . . Reprogrammed . | . . . . . Reused . | . . . . . Traps Extracted . | . . . . . Installed . | . . . . . Triggered . | . . . . . Machines | -11 -10 -9 -9 -7 ---------- Run | Yrd Mat Mat Min Zio Machines Disabled 1 | . . . . 1 Max in Single Turn 1 | . . . . 1 Machines Repaired . | . . . . . Machines Dismantled . | . . . . . Machines Sabotaged . | . . . . . Overloaded Fab Kills . | . . . . . Hacking | -11 -10 -9 -9 -7 --------- Run | Yrd Mat Mat Min Zio Machines Accessed . | . . . . . Terminals . | . . . . . Fabricators . | . . . . . Repair Stations . | . . . . . Recycling Units . | . . . . . Scanalyzers . | . . . . . Garrison Access . | . . . . . Total Hacks . | . . . . . Successful . | . . . . . Failed . | . . . . . Catastrophic . | . . . . . Database Lockouts . | . . . . . Manual 1 | . . . . 1 Terminals . | . . . . . Fabricators . | . . . . . Repair Stations . | . . . . . Recycling Units . | . . . . . Scanalyzers . | . . . . . Garrison Access . | . . . . . Terminal Hacks . | . . . . . Fabricator Hacks . | . . . . . Repair Station Hacks . | . . . . . Recycling Unit Hacks . | . . . . . Scanalyzer . | . . . . . Garrison Access Hacks . | . . . . . Unauthorized Hacks . | . . . . . Terminals . | . . . . . Fabricators . | . . . . . Repair Stations . | . . . . . Recycling Units . | . . . . . Scanalyzers . | . . . . . Garrison Access . | . . . . . Data Cores Recovered . | . . . . . Used . | . . . . . Hacking Detections . | . . . . . Full Trace Events . | . . . . . Feedback Events . | . . . . . Feedback Blocked . | . . . . . Robot Schematics Acquired . | . . . . . Robots Built . | . . . . . Authchips . | . . . . . Time . | . . . . . Total Robot Build Rating . | . . . . . Part Schematics Acquired . | . . . . . Parts Built . | . . . . . Authchips . | . . . . . Time . | . . . . . Total Part Build Rating . | . . . . . Parts Repaired . | . . . . . Time . | . . . . . Parts Recycled . | . . . . . Recycled Matter . | . . . . . Retrieved Matter . | . . . . . Retrieved Components . | . . . . . Parts Scanalyzed . | . . . . . Part Schematics Acquired . | . . . . . Parts Damaged . | . . . . . Bothacking | -11 -10 -9 -9 -7 ------------ Run | Yrd Mat Mat Min Zio Used RIF Installer . | . . . . . Robots Hacked . | . . . . . Non-combat . | . . . . . Combat . | . . . . . Robot Hacks Applied . | . . . . . Relay Couplers Released . | . . . . . Fabnet Peak Effective % . | . . . . . Robots Rewired . | . . . . . Allies Hacked . | . . . . . Hacks Repelled . | . . . . . Allies | -11 -10 -9 -9 -7 -------- Run | Yrd Mat Mat Min Zio Total Allies . | . . . . . Largest Group . | . . . . . Highest-Rated Group . | . . . . . Highest-Rated Ally . | . . . . . Total Orders . | . . . . . Ally Attacks . | . . . . . Total Damage . | . . . . . Kills . | . . . . . Allies Corrupted . | . . . . . Allies Melted . | . . . . . Intel | -11 -10 -9 -9 -7 ------- Run | Yrd Mat Mat Min Zio Robot Analysis Total . | . . . . . Derelict Logs Recovered 3 | . . . . 3 Drone Launches . | . . . . . Drone Recoveries . | . . . . . Exploration | -11 -10 -9 -9 -7 ------------- Run | Yrd Mat Mat Min Zio Turns Passed 3861 | 51 167 138 5 3500 Spaces Moved 2081 | 38 116 98 3 1826 Core 5 | 5 . . . . Treads . | . . . . . Legs 2076 | 33 116 98 3 1826 Wheels . | . . . . . Hover . | . . . . . Flight . | . . . . . Fastest Speed 50 | 50 120 120 190 126 Average Speed 146 | 110 120 136 190 148 Slowest Speed 190 | 120 120 190 190 190 Overloaded Moves . | . . . . . Propulsion Burnouts . | . . . . . Robots Hopped 1 | . . . . 1 Cave-ins Triggered 1 | . . . . 1 Exploration Rate (%) 24 | 4 19 12 5 84 Regions Visited 4 Branch Regions 2 Pre-discovered Areas 1 | . . . . 1 Known Exits Taken . | . . . . . Unknown Exits Taken 4 | 1 1 1 1 . Scrap Searched 4 | . . . . 4 Spaces Dug 17 | . . . . 17 Terrain Destroyed 33 | . . . . 33 Melee 17 | . . . . 17 Projectile . | . . . . . AOE 16 | . . . . 16 Terrain Rammed . | . . . . . Walls Destroyed . | . . . . . Machines Disabled . | . . . . . Actions | -11 -10 -9 -9 -7 --------- Run | Yrd Mat Mat Min Zio Total 2711 | 44 137 104 3 2423 Wait 357 | . 5 . 1 351 Move 2075 | 37 115 97 2 1824 Hop 1 | . . . . 1 Pick Up 19 | 1 8 1 . 9 Fast Attach 25 | 6 1 1 . 17 Attach 2 | . . . . 2 Detach 1 | . . . . 1 Swap 17 | . 1 2 . 14 Drop 25 | . 2 3 . 20 Fire 17 | . 5 . . 12 Melee 172 | . . . . 172 Ram . | . . . . . Kick . | . . . . . Crush . | . . . . . Escape Stasis . | . . . . . Rewire . | . . . . . Trap . | . . . . . Miscellaneous . | . . . . . Route ------- -11/Scrapyard -10/Materials (discovered 2 exits: [*Mat] / [*Min]) -9/Materials -9/Mines -7/Zion (discovered 1 exit: [*Pro]) History --------- Turn | Location | Event 3 | -11/Scrapyard | Discovered new exit (range 15) 52 | -11/Scrapyard | Entered Materials 172 | -10/Materials | Discovered new exit (range 12) 200 | -10/Materials | Discovered new exit (range 11) 219 | -10/Materials | Entered another Materials area 219 | -9/Materials | Evolved 2 slots: Propulsion x2 320 | -9/Materials | Discovered new exit (range 14) 334 | -9/Materials | Build established: Mutant 357 | -9/Materials | Entered Mines 358 | -9/Mines | A Derelict revealed a hidden shortcut to a safe place 362 | -9/Mines | Entered Zion 555 | -7/Zion | Received a hallucinogenic algorithm 735 | -7/Zion | Found Prototype Device 926 | -7/Zion | Learned Factory emergency access door positions 962 | -7/Zion | Learned Factory terminal intel 1380 | -7/Zion | Learned 8 Factory zone layouts 1507 | -7/Zion | Discovered new exit (range 15) 1534 | -7/Zion | Found Prototype Launcher 1534 | -7/Zion | Identified Gui. Missile Launcher 1779 | -7/Zion | Learned location of 1 exit from Factory 2490 | -7/Zion | Attacked by Zionites 2771 | -7/Zion | Crushed by falling debris 2811 | -7/Zion | Build established: Derelict-Mutant 3178 | -7/Zion | Core integrity fell below 50% 3279 | -7/Zion | Identified Mobile Refinery Mk. CCLXVII 3695 | -7/Zion | Build established: Scavenger-Mutant 3755 | -7/Zion | System corruption reached 10% 3829 | -7/Zion | Core integrity fell below 20% 3862 | -7/Zion | Destroyed by TC-XMQ(d) with Rocket Launcher Last Messages --------------- 03793_ Mak. Leg melted. 03793_ W1-8CG(z) destroyed. 03795_ System corrupted: IFF burst signal emitted. BS-XJN(z) bursts out of the Twisted Machinery. 03801_ BS-XJN(z) pulls a Mak. Spear out of the Twisted Machinery. 03812_ BS-XJN(z) destroyed. 03817_ Acquired Titanium Leg. FP-130(z) bursts out of the Twisted Machinery. 03821_ Acquired 10 matter. 03822_ FP-130(z) pulls a Mak. Spear out of the Twisted Machinery. 03826_ FP-130(z) Mak. Leg severed. 03826_ Mak. Spear follow-up attack on FP-130(z). 03828_ FP-130(z) destroyed. 03835_ Dropped Mak. Power Source. 03836_ AZ-U8P(z) pulls a Mak. Hammer out of the Twisted Machinery. 03840_ System corrupted: Heat flow error (+187). 03841_ Knocked back. 03847_ AZ-U8P(z) destroyed. 03852_ Acquired 10 matter. 03857_ Mak. Leg destroyed. Map ----- +----------------------------------------------------+ | ??????????????????????????????????????????????#### | | ?????????????????????????????????????????????##""" | | ???????????????????????????????????#####?????#"" " | | ????????????????????????????????####"""#?????#! | | ????########???###???????????????""""""#?????#!! | | ????#"""#""##### ######?????????##" ""###???### | | ????## # "" # #???????###"" """##??# # | | ?????## ######### ###???####"#""" """#??# " | | ????### #???????" #####"""""""" ""#??# " | | ???## #???????# * " #""" "####""" | | ???# ####??????## ! [= "" """"""" | | ???# #?????????" ! = """ ""#"""" | | ???# #?????????" =!% """ """""" | | ???# #???####### *=* =[== " """ | | ???# #???# * = *= ! " | | ???# #???#=#### # %*! d" " " | | ???# ##### #??#### # ## % """"" " | | ???## # #?????#######%=# """""" "" | | ????## # ###?????????###//% """""" ""# | | ?????#####???????????# *"/ "" "" """ | | ????????????????????## = c "" """ "" | | ????????????????????#"" """""""" "" | | ????????????????????# "" | | ????????????????????#" "" | | ??????????????#######" "" """"" | | ??????????????# [ # " @ #""""#"""" """"""" | | ?????????????#"" "" " "" """""""""" """"""" | | ?????????????# " "####" """"" """"""" | | ?????????????#" "" "#"##" "" """####" | | ?????????????##"""" " """#?#"" """"##"" | | ??????????????##""# """###""" ""##### | | ???????????????###### "z#"""""" ""#??? | | ???????????????????### "#"""""" """ """###? | | ?????????????????###" """ """" ""##"## | | ?????????????????#"& "" """ ""#"" """"""# | | ?????????????????## """"""""" """# | | ??????????????????#" """"""#"" ""# | | ??????????????????#<< "#"""""#" ""# | | ???????????##????###" # """ ""#" """# | | ?????????###"#####"""" #"" """ """" | | ?????????#"#"#"""#""""" "" """ | | ##########""""""""""""" """ "" | | """""""" #""" """" " | | """""""" #""" """"" | | #""" """"#" | | """" ##"" """""" """ """### | | """"" """""#"" """""""" """## | | """"" ""#"###" """"""##" ""### | | """"" ""#"##""" "##""#""" " """# | | """" ###" ""#####""" ""#####"" """""## | +----------------------------------------------------+ Best States ------------- Heat Dissipation 28 Energy Generation 16 Energy Capacity 290 Matter Stores 300 Matter Capacity 300 Sight Range 16 Terrain Scan Density 10 Core Shielding 20 Weapon Shielding 66 Evasion (%) 55 Salvage Targeting 4 Item Schematics ----------------- None Robot Schematics ------------------ None Fabricated ------------ Nothing Alien Tech Used ----------------- None Achievements -------------- Monster Challenges ------------ None Game ------ Seed ActuatorMediumBeam Manual? 0 Play Time 00:22:18 Cumulative 175.1 hours Start 2024.06.10 @ 18:57:01 End 2024.06.10 @ 19:44:32 Sessions 1 Manual Loads 0 Difficulty Rogue Special Mode None Game No. 346 Rogue 346 Adventurer 0 Explorer 0 Win Type - Total 0 Types 0/0/0/0/0/0/0/0/0 Lore% 48 Gallery% 65 Achievement% 46 Wizard Run 0 Options --------- Layout 0 ASCII 0 Keyboard 1 Movement Numpad Keybinds 0 Fullscreen 2 Font 18/X11 Map View 76x50 Zoom Use 0% Tactical HUD 1 Map Filters NONE Filters NONE Steam 1 RUN: 5cea1edd-3db3-4020-9dd3-621c7bb51921